fUST/lending_fUST_20250501
["ID","MTS","AMOUNT","RATE_DAILY","PERIOD"]
[359488889,1746058238447,-500.0,0.00038355,15]
[359488891,1746058238456,-500.0,0.00038355,15]
[359488893,1746058238466,-500.0,0.00038355,15]
[359488895,1746058238475,-500.0,0.00038355,15]
[359488897,1746058238484,-442.40993847,0.00038355,15]
[359488899,1746058238493,-500.0,0.00038355,15]
[359488901,1746058238503,-500.0,0.00038355,15]
[359488902,1746058238512,-500.0,0.00038355,15]
[359488904,1746058238522,-500.0,0.00038355,15]
[359488905,1746058238532,-500.0,0.00038355,15]
[359488906,1746058238542,-393.89892084,0.00038355,15]
[359488908,1746058238552,-421.21027914,0.00038355,15]
[359488909,1746058238562,-261.07308757,0.00038356,12]
[359488911,1746058238571,-400.0,0.00038356,12]
[359488912,1746058238581,-458.29,0.00038356,12]
[359488914,1746058238591,-400.0,0.00038356,12]
[359488916,1746058238600,-458.29,0.00038356,12]
[359488918,1746058238610,-400.0,0.00038356,12]
[359488920,1746058238619,-400.0,0.00038356,12]
[359488921,1746058238628,-400.0,0.00038356,12]
[359488923,1746058238638,-400.0,0.00038356,12]
[359488925,1746058238647,-400.0,0.00038356,12]
[359488926,1746058238657,-400.0,0.00038356,12]
[359488927,1746058238667,-400.0,0.00038356,12]
[359488929,1746058238676,-400.0,0.00038356,12]
[359488930,1746058238686,-400.0,0.00038356,12]
[359488931,1746058238695,-400.0,0.00038356,12]
[359488932,1746058238705,-400.0,0.00038356,12]
[359488933,1746058238715,-400.0,0.00038356,12]
[359488934,1746058238724,-400.0,0.00038356,12]
[359488935,1746058238734,-400.0,0.00038356,12]
[359488936,1746058238744,-293.40208566,0.00038356,12]
[359488937,1746058238753,-400.0,0.00038356,12]
[359488938,1746058238763,-400.0,0.00038356,12]
[359488939,1746058238773,-400.0,0.00038356,12]
[359488940,1746058238782,-400.0,0.00038356,12]
[359488941,1746058238792,-151.0,0.00038356,12]
[359488942,1746058238801,-151.0,0.00038356,12]
[359488943,1746058238811,-151.0,0.00038356,12]
[359488944,1746058238820,-151.0,0.00038356,12]
[359488945,1746058238830,-151.0,0.00038356,12]
[359488946,1746058238840,-169.58408019,0.00038356,12]
[359488947,1746058238851,-400.0,0.00038356,12]
[359488948,1746058238861,-462.11,0.00038356,12]
[359488949,1746058238872,-742.75,0.00038356,12]
[359488950,1746058238882,-742.75,0.00038356,12]
[359488951,1746058238891,-742.75,0.00038356,12]
[359488952,1746058238901,-742.75,0.00038356,12]
[359488953,1746058238911,-151.0,0.00038356,12]
[359488954,1746058238921,-742.75,0.00038356,12]
[359488955,1746058238930,-742.75,0.00038356,12]
[359488956,1746058238940,-742.75,0.00038356,12]
[359488957,1746058238950,-151.0,0.00038356,12]
[359488958,1746058238959,-742.75,0.00038356,12]
[359488959,1746058238970,-151.0,0.00038356,12]
[359488960,1746058238982,-742.75,0.00038356,12]
[359488961,1746058238991,-151.0,0.00038356,12]
[359488962,1746058239001,-400.0,0.00038356,12]
[359488963,1746058239011,-742.75,0.00038356,12]
[359488964,1746058239021,-245.0,0.00038356,12]
[359488965,1746058239031,-400.0,0.00038356,12]
[359488966,1746058239045,-400.0,0.00038356,12]
[359488967,1746058239055,-400.0,0.00038356,12]
[359488968,1746058239229,-400.0,0.00038356,12]
[359488969,1746058239240,-400.0,0.00038356,12]
[359488970,1746058239250,-525.85,0.00038356,12]
[359488971,1746058239260,-400.0,0.00038356,12]
[359488972,1746058239270,-400.0,0.00038356,12]
[359488973,1746058239283,-400.0,0.00038356,12]
[359488974,1746058239298,-400.0,0.00038356,12]
[359488975,1746058239311,-306.66251692,0.00038356,12]
[359488976,1746058239321,-400.0,0.00038356,12]
[359488977,1746058239331,-400.0,0.00038356,12]
[359488978,1746058239342,-512.41,0.00038356,12]
[359488979,1746058239354,-793.78,0.00038356,12]
[359488980,1746058239364,-793.78,0.00038356,12]
[359488981,1746058239374,-793.78,0.00038356,12]
[359488982,1746058239383,-793.78,0.00038356,12]
[359488983,1746058239392,-793.78,0.00038356,12]
[359488984,1746058239404,-793.78,0.00038356,12]
[359488985,1746058239413,-793.78,0.00038356,12]
[359488986,1746058239422,-400.0,0.00038356,12]
[359488987,1746058239433,-793.78,0.00038356,12]
[359488988,1746058239442,-400.0,0.00038356,12]
[359488989,1746058239453,-793.78,0.00038356,12]
[359488990,1746058239462,-400.0,0.00038356,12]
[359488991,1746058239472,-400.0,0.00038356,12]
[359488992,1746058239481,-400.0,0.00038356,12]
[359488993,1746058239490,-400.0,0.00038356,12]
[359488994,1746058239499,-400.0,0.00038356,12]
[359488995,1746058239509,-400.0,0.00038356,12]
[359488996,1746058239518,-400.0,0.00038356,12]
[359488997,1746058239527,-400.0,0.00038356,12]
[359488998,1746058239536,-400.0,0.00038356,12]
[359488999,1746058239545,-400.0,0.00038356,12]
[359489000,1746058239554,-400.0,0.00038356,12]
[359489001,1746058239564,-407.32,0.00038356,12]
[359489002,1746058239573,-400.0,0.00038356,12]
[359489003,1746058239582,-400.0,0.00038356,12]
[359489004,1746058239592,-400.0,0.00038356,12]
[359489005,1746058239601,-400.0,0.00038356,12]
[359489006,1746058239611,-400.0,0.00038356,12]
[359489007,1746058239620,-400.0,0.00038356,12]
[359489008,1746058239630,-400.0,0.00038356,12]
[359489009,1746058239639,-400.0,0.00038356,12]
[359489010,1746058239648,-400.0,0.00038356,12]
[359489011,1746058239658,-400.0,0.00038356,12]
[359489012,1746058239667,-400.0,0.00038356,12]
[359489013,1746058239677,-400.0,0.00038356,12]
[359489014,1746058239686,-400.0,0.00038356,12]
[359489015,1746058239696,-400.0,0.00038356,12]
[359489016,1746058239705,-470.57,0.00038356,12]
[359489017,1746058239714,-470.57,0.00038356,12]
[359489018,1746058239724,-470.57,0.00038356,12]
[359489019,1746058239734,-470.57,0.00038356,12]
[359489020,1746058239743,-470.57,0.00038356,12]
[359489021,1746058239753,-502.64254952,0.00038356,12]
[359489022,1746058239764,-470.57,0.00038356,12]
[359489023,1746058239775,-470.57,0.00038356,12]
[359489024,1746058239785,-470.57,0.00038356,12]
[359489025,1746058239795,-470.57,0.00038356,12]
[359489026,1746058239805,-470.57,0.00038356,12]
[359489027,1746058239814,-836.22,0.00038356,12]
[359489028,1746058239824,-836.22,0.00038356,12]
[359489029,1746058239834,-836.22,0.00038356,12]
[359489030,1746058239844,-836.22,0.00038356,12]
[359489031,1746058239854,-836.22,0.00038356,12]
[359489032,1746058239864,-836.22,0.00038356,12]
[359489033,1746058239874,-836.22,0.00038356,12]
[359489034,1746058239884,-836.22,0.00038356,12]
[359489036,1746058239894,-836.22,0.00038356,12]
[359489037,1746058239904,-400.0,0.00038356,12]
[359489038,1746058239913,-1279.08,0.00038356,12]
[359489039,1746058239922,-1279.08,0.00038356,12]
[359489040,1746058239932,-1279.08,0.00038356,12]
[359489041,1746058239941,-1279.08,0.00038356,12]
[359489042,1746058239951,-1279.08,0.00038356,12]
[359489043,1746058239960,-1279.08,0.00038356,12]
[359489044,1746058239970,-400.0,0.00038356,12]
[359489045,1746058239979,-1279.08,0.00038356,12]
[359489046,1746058239990,-1279.08,0.00038356,12]
[359489047,1746058239999,-1279.08,0.00038356,12]
[359489048,1746058240009,-400.0,0.00038356,12]
[359489049,1746058240019,-1279.08,0.00038356,12]
[359489050,1746058240028,-151.0,0.00038356,12]
[359489051,1746058240038,-400.0,0.00038356,12]
[359489052,1746058240047,-400.0,0.00038356,12]
[359489053,1746058240057,-207.5782219,0.00038356,12]
[359489054,1746058240067,-492.91,0.00038356,12]
[359489055,1746058240078,-400.0,0.00038356,12]
[359489056,1746058240088,-400.0,0.00038356,12]
[359489057,1746058240098,-447.60885252,0.00038356,12]
[359489058,1746058240108,-171.49459737,0.00038356,12]
[359489059,1746058240117,-400.0,0.00038356,12]
[359489060,1746058240127,-400.0,0.00038356,12]
[359489061,1746058240136,-400.0,0.00038356,12]
[359489063,1746058240145,-400.0,0.00038356,12]
[359489065,1746058240155,-400.0,0.00038356,12]
[359489067,1746058240165,-500.0,0.00038356,12]
[359489069,1746058240174,-400.0,0.00038356,12]
[359489070,1746058240183,-300.0,0.00038356,12]
[359489072,1746058240193,-400.0,0.00038356,12]
[359489073,1746058240203,-400.0,0.00038356,12]
[359489074,1746058240212,-400.0,0.00038356,12]
[359489075,1746058240222,-280.84,0.00038356,12]
[359489076,1746058240231,-400.0,0.00038356,12]
[359489077,1746058240241,-400.0,0.00038356,12]
[359489078,1746058240251,-400.0,0.00038356,12]
[359489079,1746058240260,-400.0,0.00038356,12]
[359489080,1746058240271,-400.0,0.00038356,12]
[359489081,1746058240280,-400.0,0.00038356,12]
[359489082,1746058240290,-413.6891472,0.00038356,12]
[359489083,1746058240299,-400.0,0.00038356,12]
[359489084,1746058240308,-400.0,0.00038356,12]
[359489085,1746058240318,-400.0,0.00038356,12]
[359489086,1746058240328,-500.0,0.00038356,12]
[359489087,1746058240338,-400.0,0.00038356,12]
[359489088,1746058240348,-500.0,0.00038356,12]
[359489089,1746058240368,-400.0,0.00038356,12]
[359489090,1746058240379,-500.0,0.00038356,12]
[359489091,1746058240389,-500.0,0.00038356,12]
[359489092,1746058240399,-500.0,0.00038356,12]
[359489093,1746058240409,-500.0,0.00038356,12]
[359489094,1746058240419,-500.0,0.00038356,12]
[359489095,1746058240429,-500.0,0.00038356,12]
[359489096,1746058240440,-152.64,0.00038356,12]
[359489097,1746058240450,-400.0,0.00038356,12]
[359489098,1746058240460,-400.0,0.00038356,12]
[359489099,1746058240470,-400.0,0.00038356,12]
[359489100,1746058240479,-400.0,0.00038356,12]
[359489101,1746058240489,-400.0,0.00038356,12]
[359489102,1746058240499,-194.54339249,0.00038356,12]
[359489103,1746058240509,-400.0,0.00038356,12]
[359489104,1746058240519,-400.0,0.00038356,12]
[359489106,1746058240529,-400.0,0.00038356,12]
[359489108,1746058240539,-498.0,0.00038356,12]
[359489110,1746058240548,-400.0,0.00038356,12]
[359489112,1746058240558,-400.0,0.00038356,12]
[359489114,1746058240567,-400.0,0.00038356,12]
[359489116,1746058240577,-402.1583841,0.00038356,12]
[359489118,1746058240587,-400.0,0.00038356,12]
[359489120,1746058240597,-400.0,0.00038356,12]
[359489122,1746058240607,-400.0,0.00038356,12]
[359489124,1746058240616,-528.08,0.00038356,12]
[359489126,1746058240626,-2840.85445045,0.00038362,3]
[359489128,1746058240636,-432.75,0.00038371,12]
[359489130,1746058240645,-793.78,0.00038371,12]
[359489132,1746058240655,-400.0,0.00038372,12]
[359489134,1746058240665,-203.02796092,0.00038372,12]
[359489136,1746058240676,-260.96,0.00038372,12]
[359489138,1746058240686,-400.0,0.00038372,12]
[359489140,1746058240695,-400.0,0.00038372,12]
[359489142,1746058240705,-742.75,0.00038372,12]
[359489144,1746058240715,-1279.08,0.00038372,12]
[359489146,1746058240724,-550.88207497,0.00038373,2]
[359489148,1746058240733,-194.80074453,0.00038373,5]
[359489150,1746058240743,-500.0,0.00038373,5]
[359489152,1746058240752,-500.0,0.00038373,5]
[359489154,1746058240764,-500.0,0.00038373,5]
[359489156,1746058240773,-500.0,0.00038373,5]
[359489158,1746058240783,-500.0,0.00038373,5]
[359489160,1746058240792,-500.6521426,0.00038373,2]
[359489162,1746058240802,-386.43135568,0.00038373,5]
[359489164,1746058240811,-211.04845706,0.00038373,5]
[359489165,1746058240821,-500.0,0.00038373,5]
[359489166,1746058240831,-500.0,0.00038373,5]
[359489168,1746058240842,-430.33020921,0.00038373,5]
[359489170,1746058240852,-2840.85445045,0.0003839,3]
[359489172,1746058240862,-836.22,0.00038398,12]
[359489174,1746058240871,-400.0,0.00038399,12]
[359489176,1746058240881,-400.0,0.00038399,12]
[359489178,1746058240891,-400.0,0.00038399,12]
[359489180,1746058240901,-400.0,0.00038399,12]
[359489182,1746058240911,-458.29,0.00038399,12]
[359489185,1746058240921,-458.29,0.00038399,12]
[359489187,1746058240930,-400.0,0.00038399,12]
[359489189,1746058240940,-400.0,0.00038399,12]
[359489191,1746058240950,-400.0,0.00038399,12]
[359489193,1746058240960,-742.75,0.00038399,12]
[359489195,1746058240969,-793.78,0.00038399,12]
[359489197,1746058240985,-793.78,0.00038399,12]
[359489199,1746058240994,-400.0,0.00038399,12]
[359489201,1746058241004,-400.0,0.00038399,12]
[359489204,1746058241014,-400.0,0.00038399,12]
[359489206,1746058241024,-400.0,0.00038399,12]
[359489209,1746058241034,-470.57,0.00038399,12]
[359489211,1746058241044,-470.57,0.00038399,12]
[359489212,1746058241054,-836.22,0.00038399,12]
[359489213,1746058241064,-1279.08,0.00038399,12]
[359489214,1746058241074,-23110.79,0.000384,30]
[359489215,1746058241084,-3559.08,0.000384,7]
[359489216,1746058241094,-6770.78,0.000384,30]
[359489217,1746058241105,-151.0,0.000384,10]
[359489218,1746058241116,-636.0,0.000385,2]
[359489219,1746058241126,-1000.0,0.00038568,60]
[359489220,1746058241137,-313.94367078,0.00038573,2]
[359489221,1746058241147,-836.22,0.00038599,12]
[359489222,1746058241157,-151.0,0.000386,20]
[359489223,1746058241167,-200.0,0.00038679,120]
[359489224,1746058241178,-400.0,0.00038799,12]
[359489225,1746058241188,-742.75,0.00038799,12]
[359489226,1746058241198,-1279.08,0.00038799,12]
[359489227,1746058241208,-151.0,0.000388,14]
[359489228,1746058241218,-6714.10917508,0.000388,2]
[359489229,1746058241228,-400.0,0.00038862,12]
[359489231,1746058241237,-458.29,0.00038862,12]
[359489233,1746058241247,-400.0,0.00038862,12]
[359489235,1746058241257,-400.0,0.00038862,12]
[359489238,1746058241267,-470.57,0.00038862,12]
[359489240,1746058241277,-400.0,0.00038872,12]
[359489242,1746058241286,-300.0,0.00038872,12]
[359489243,1746058241296,-400.0,0.00038872,12]
[359489246,1746058241305,-742.75,0.00038872,12]
[359489248,1746058241315,-793.78,0.00038872,12]
[359489250,1746058241324,-836.22,0.00038872,12]
[359489252,1746058241334,-1279.08,0.00038872,12]
[359489254,1746058241344,-500.0,0.00038873,5]
[359489256,1746058241354,-500.0,0.00038873,5]
[359489258,1746058241367,-500.0,0.00038873,5]
[359489260,1746058241376,-500.0,0.00038873,5]
[359489262,1746058241385,-500.77378023,0.00038873,5]
[359489264,1746058241395,-500.0,0.00038873,5]
[359489265,1746058241406,-500.0,0.00038873,5]
[359489268,1746058241416,-500.0,0.00038873,5]
[359489270,1746058241425,-500.0,0.00038873,5]
[359489272,1746058241434,-500.40766554,0.00038873,5]
[359489274,1746058241447,-500.0,0.00038873,5]
[359489276,1746058241458,-500.0,0.00038873,5]
[359489278,1746058241467,-500.0,0.00038873,5]
[359489280,1746058241477,-500.0,0.00038873,5]
[359489282,1746058241486,-171.57088625,0.00038873,5]
[359489284,1746058241496,-500.0,0.00038873,3]
[359489286,1746058241505,-500.0,0.00038873,5]
[359489288,1746058241514,-500.0,0.00038873,5]
[359489290,1746058241524,-500.0,0.00038873,5]
[359489292,1746058241534,-500.0,0.00038873,5]
[359489294,1746058241543,-500.0,0.00038873,5]
[359489297,1746058241553,-500.0,0.00038873,5]
[359489299,1746058241562,-500.0,0.00038873,5]
[359489301,1746058241572,-500.0,0.00038873,5]
[359489303,1746058241581,-554.44329129,0.00038873,5]
[359489305,1746058241591,-500.0,0.00038873,5]
[359489307,1746058241600,-500.0,0.00038873,5]
[359489309,1746058241609,-2840.85445045,0.00038889,3]
[359489311,1746058241618,-5681.7089009,0.0003889,3]
[359489313,1746058241627,-400.0,0.00038898,12]
[359489315,1746058241636,-458.29,0.00038898,12]
[359489317,1746058241645,-400.0,0.00038898,12]
[359489319,1746058241654,-345.73,0.00038898,12]
[359489321,1746058241664,-470.57,0.00038898,12]
[359489323,1746058241673,-836.22,0.00038898,12]
[359489325,1746058241683,-301.22,0.00038899,12]
[359489327,1746058241692,-400.0,0.00038899,12]
[359489329,1746058241701,-400.0,0.00038899,12]
[359489331,1746058241710,-400.0,0.00038899,12]
[359489333,1746058241720,-400.0,0.00038899,12]
[359489335,1746058241729,-400.0,0.00038899,12]
[359489337,1746058241739,-459.52034224,0.00038899,12]
[359489339,1746058241748,-458.29,0.00038899,12]
[359489341,1746058241757,-458.29,0.00038899,12]
[359489343,1746058241767,-458.29,0.00038899,12]
[359489345,1746058241776,-458.29,0.00038899,12]
[359489347,1746058241785,-458.29,0.00038899,12]
[359489349,1746058241795,-458.29,0.00038899,12]
[359489351,1746058241804,-458.29,0.00038899,12]
[359489353,1746058241813,-458.29,0.00038899,12]
[359489355,1746058241822,-458.29,0.00038899,12]
[359489357,1746058241832,-458.38,0.00038899,12]
[359489359,1746058241841,-338.34283798,0.00038899,12]
[359489361,1746058241850,-742.75,0.00038899,12]
[359489363,1746058241860,-742.75,0.00038899,12]
[359489365,1746058241869,-742.75,0.00038899,12]
[359489367,1746058241879,-742.75,0.00038899,12]
[359489369,1746058241888,-742.75,0.00038899,12]
[359489371,1746058241897,-742.75,0.00038899,12]
[359489373,1746058241907,-742.75,0.00038899,12]
[359489375,1746058241916,-742.75,0.00038899,12]
[359489377,1746058241926,-742.75,0.00038899,12]
[359489379,1746058241936,-742.81601605,0.00038899,12]
[359489381,1746058241946,-793.78,0.00038899,12]
[359489383,1746058241956,-793.78,0.00038899,12]
[359489385,1746058241965,-793.78,0.00038899,12]
[359489387,1746058241975,-793.78,0.00038899,12]
[359489389,1746058241985,-793.78,0.00038899,12]
[359489391,1746058241994,-400.0,0.00038899,12]
[359489393,1746058242003,-400.0,0.00038899,12]
[359489395,1746058242012,-400.0,0.00038899,12]
[359489396,1746058242022,-400.0,0.00038899,12]
[359489397,1746058242031,-400.0,0.00038899,12]
[359489398,1746058242041,-400.0,0.00038899,12]
[359489399,1746058242050,-400.0,0.00038899,12]
[359489400,1746058242060,-400.0,0.00038899,12]
[359489401,1746058242069,-204.64,0.00038899,12]
[359489402,1746058242079,-470.57,0.00038899,12]
[359489403,1746058242089,-470.57,0.00038899,12]
[359489404,1746058242099,-470.57,0.00038899,12]
[359489405,1746058242108,-470.57,0.00038899,12]
[359489406,1746058242118,-470.57,0.00038899,12]
[359489407,1746058242128,-470.57,0.00038899,12]
[359489408,1746058242137,-470.57,0.00038899,12]
[359489409,1746058242147,-470.57,0.00038899,12]
[359489410,1746058242157,-836.22,0.00038899,12]
[359489411,1746058242167,-836.22,0.00038899,12]
[359489412,1746058242177,-836.22,0.00038899,12]
[359489413,1746058242187,-470.57,0.00038899,12]
[359489414,1746058242197,-836.22,0.00038899,12]
[359489415,1746058242206,-836.22,0.00038899,12]
[359489416,1746058242217,-470.71,0.00038899,12]
[359489417,1746058242226,-836.22,0.00038899,12]
[359489418,1746058242236,-836.22,0.00038899,12]
[359489419,1746058242245,-836.22,0.00038899,12]
[359489420,1746058242255,-836.22,0.00038899,12]
[359489421,1746058242265,-836.26667615,0.00038899,12]
[359489422,1746058242274,-1279.08,0.00038899,12]
[359489423,1746058242284,-1279.08,0.00038899,12]
[359489424,1746058242293,-1279.08,0.00038899,12]
[359489425,1746058242303,-1279.08,0.00038899,12]
[359489426,1746058242312,-1279.08,0.00038899,12]
[359489427,1746058242322,-1279.08,0.00038899,12]
[359489428,1746058242332,-1279.08,0.00038899,12]
[359489429,1746058242342,-1279.08,0.00038899,12]
[359489430,1746058242352,-1279.08,0.00038899,12]
[359489431,1746058242365,-1279.21,0.00038899,12]
[359489432,1746058242376,-652.49534307,0.00038899,3]
[359489433,1746058242387,-23591.78153298,0.000389,2]
[359489434,1746058242396,-13615.68027981,0.000389,30]
[359489435,1746058242489,-475.32,0.00038356,12]
[359489436,1746058242499,-79.57270735,0.000389,30]
[359489437,1746058242511,-8113.76032311,0.000389,30]
[359489446,1746058243771,-6143.45331048,0.000389,30]
[359489447,1746058243783,-23773.93460642,0.000389,30]
[359489449,1746058243794,-1058.35366644,0.000389,30]
[359489450,1746058243805,-37861.94478545,0.000389,30]
[359489454,1746058243864,-19.63387126,0.000389,30]
[359489458,1746058246415,-2289.7943727,0.000389,30]
[359489459,1746058246428,-2691.57191127,0.000389,30]
[359489460,1746058246439,-151.0,0.000389,2]
[359489461,1746058246449,-313.94367078,0.00038901,2]
[359489462,1746058246458,-322.407738,0.00038933,2]
[359489463,1746058246467,-151.0,0.00039,11]
[359489464,1746058246477,-1000.0,0.00039116,60]
[359489465,1746058246486,-313.94367078,0.00039228,2]
[359489466,1746058246495,-6714.10917505,0.00039235,2]
[359489467,1746058246505,-151.0,0.000393,12]
[359489468,1746058246514,-2368.51996444,0.00039498,3]
[359489469,1746058246527,-472.33448601,0.00039498,3]
[359489470,1746058246537,-151.0,0.000395,10]
[359489471,1746058246546,-150.0,0.00039508,2]
[359489472,1746058246555,-150.0,0.00039508,2]
[359489473,1746058246564,-218.146,0.00039508,2]
[359489474,1746058246574,-545.0,0.00039508,2]
[359489475,1746058246585,-707.0,0.00039508,2]
[359489476,1746058246593,-2245.0,0.00039508,2]
[359489477,1746058246603,-313.94367078,0.00039556,2]
[359489478,1746058246612,-1000.0,0.00039664,60]
[359489479,1746058246620,-6714.10917505,0.0003967,2]
[359489480,1746058246629,-151.0,0.000397,17]
[359489481,1746058246637,-200.0,0.00039873,120]
[359489482,1746058246645,-313.94367078,0.00039883,2]
[359489483,1746058246653,-1000.0,0.0004,120]
[359489484,1746058246662,-157.02,0.0004,30]
[359489485,1746058246670,-350.0,0.0004,120]
[359489486,1746058246678,-153.0,0.0004,120]
[359489487,1746058246687,-260.0,0.0004,2]
[359489488,1746058246696,-151.0,0.0004,20]
[359489489,1746058246705,-9497.50410708,0.00040103,4]
[359489493,1746058484290,-274.046577,0.00027397,2]
[359489494,1746058484314,-814.953423,0.000283,2]
[359489495,1746058550640,-185.046577,0.000283,2]
[359489498,1746059022472,-157.0,0.00025,2]
[359489500,1746059091568,-90.0,0.00025,2]
[359489503,1746059159719,501.0,0.00026574,2]
[359489508,1746059233127,-155.36175,0.00030937,2]
[359489509,1746059233148,-119.87629334,0.000324,2]
[359489510,1746059248108,-1069.12370666,0.000324,2]
[359489511,1746059248128,-274.046577,0.00033165,2]
[359489512,1746059248149,-160.0,0.0003443,2]
[359489513,1746059248169,-160.0,0.0003447,2]
[359489514,1746059248190,-822.0,0.00034811,2]
[359489515,1746059248210,-469.552017,0.00034913,2]
[359489516,1746059248232,-185.5313223,0.00035163,2]
[359489517,1746059248252,-228.16191896,0.00035186,120]
[359489519,1746059250093,-818.56720304,0.00035186,120]
[359489520,1746059250115,-82.86875558,0.00036493,2]
[359489521,1746059251078,-324.0,0.00036493,2]
[359489522,1746059318054,573.73648823,0.000149,2]
[359489523,1746059322069,916.93516469,0.00015,2]
[359489524,1746059349102,-172.93664062,0.00025,2]
[359489525,1746059349123,-178.78763045,0.00025,2]
[359489526,1746059352099,-27.72833504,0.00025,2]
[359489527,1746059352121,-150.0,0.00025,3]
[359489549,1746059432390,-306.52592176,0.00033086,2]
[359489550,1746059432444,-165.25559802,0.00033086,2]
[359489551,1746059432454,-3509.12415608,0.00035,30]
[359489552,1746059432464,-188.5530485,0.00035188,2]
[359489553,1746059432475,-1600.0,0.00035259,3]
[359489554,1746059432485,-300.0,0.00035259,3]
[359489555,1746059432496,-900.79229658,0.00036493,2]
[359489556,1746059432506,-202.05298635,0.00036588,2]
[359489557,1746059432519,-97.94701365,0.00036588,2]
[359489558,1746059432529,-1252.44481318,0.00036593,15]
[359489559,1746059432540,-160.0,0.00037585,2]
[359489560,1746059432550,-351.0,0.00037945,3]
[359489561,1746059432560,-799.999998,0.00038,2]
[359489562,1746059432571,-471.78151978,0.00038086,2]
[359489563,1746059432583,-324.5789199,0.00038355,15]
[359489564,1746059432592,-265.98876898,0.00038355,15]
[359489566,1746059432601,-587.47310643,0.00038355,7]
[359489568,1746059432611,-7983.81149097,0.00038356,5]
[359489569,1746059432622,-400.0,0.00038356,12]
[359489570,1746059432633,-400.0,0.00038356,12]
[359489571,1746059432643,-426.15,0.00038356,12]
[359489572,1746059432653,-400.0,0.00038356,12]
[359489573,1746059432664,-454.21673703,0.00038356,12]
[359489574,1746059432675,-400.0,0.00038356,12]
[359489575,1746059432686,-314.58,0.00038356,12]
[359489576,1746059432697,-220.41149931,0.00038356,12]
[359489577,1746059432711,-179.58850069,0.00038356,12]
[359489578,1746059432723,-400.0,0.00038356,12]
[359489579,1746059432734,-287.71830431,0.00038356,12]
[359489606,1746059438424,-112.28169569,0.00038356,12]
[359489607,1746059438433,-359.2636914,0.00038356,12]
[359489608,1746059438447,-40.7363086,0.00038356,12]
[359489609,1746059438457,-400.0,0.00038356,12]
[359489610,1746059438467,-400.0,0.00038356,12]
[359489611,1746059438477,-400.0,0.00038356,12]
[359489612,1746059438486,-233.53,0.00038356,12]
[359489613,1746059438495,-400.0,0.00038356,12]
[359489614,1746059438505,-400.0,0.00038356,12]
[359489615,1746059438515,-400.0,0.00038356,12]
[359489616,1746059438524,-400.0,0.00038356,12]
[359489617,1746059438535,-400.0,0.00038356,12]
[359489618,1746059438545,-400.0,0.00038356,12]
[359489619,1746059438554,-342.78442517,0.00038356,12]
[359489621,1746059438567,-57.21557483,0.00038356,12]
[359489622,1746059438577,-231.48054363,0.00038356,12]
[359489623,1746059438586,-400.0,0.00038356,12]
[359489624,1746059438595,-400.0,0.00038356,12]
[359489625,1746059438605,-400.0,0.00038356,12]
[359489626,1746059438614,-264.80388155,0.00038356,12]